bitfinex-derivatives/quotes_ETHF0:USTF0_20251006
["timestamp","ask_amount","ask_price","bid_price","bid_amount"]
[1759751664247,1.40157528,4573.7,4573.6,44.40274133]
[1759751664647,1.40157528,4573.7,4573.6,44.00934133]
[1759751664848,1.40157528,4573.7,4573.6,44.31874133]
[1759751665051,1.40157528,4573.7,4573.6,44.71214133]
[1759751665246,1.40157528,4573.7,4573.6,41.11094133]
[1759751665850,1.40157528,4573.7,4573.6,41.50434133]
[1759751666350,1.40157528,4573.7,4573.6,0.52214133]
[1759751667546,1.40157528,4573.7,4573.6,0.21274133]
[1759751671858,1.40157528,4573.7,4573.6,0.00154133]
[1759751674557,1.40157528,4573.7,4573.6,0.21274133]
[1759751675258,1.40157528,4573.7,4573.6,0.53134133]
[1759751675665,1.40157528,4573.7,4573.6,0.21274133]
[1759751677663,1.40157528,4573.7,4573.6,0.53134133]
[1759751677862,1.40157528,4573.7,4573.6,0.21274133]
[1759751678155,1.40157528,4573.7,4573.6,0.00154133]
[1759751678558,1.40157528,4573.7,4573.6,0.52904133]
[1759751679663,1.40157528,4573.7,4573.6,0.21044133]
[1759751679961,1.40157528,4573.7,4573.6,0.52904133]
[1759751680765,1.40157528,4573.7,4573.6,1.12794133]
[1759751681468,1.18257528,4573.7,4573.6,1.12794133]
[1759751681764,1.17807528,4573.7,4573.6,0.73454133]
[1759751681966,1.38887528,4573.7,4573.6,0.73454133]
[1759751682665,1.16987528,4573.7,4573.6,0.73454133]
[1759751682862,1.38887528,4573.7,4573.6,0.73454133]
[1759751683558,1.38887528,4573.7,4573.6,0.00154133]
[1759751684662,1.87923211,4573.7,4573.6,0.00154133]
[1759751685769,1.66023211,4573.7,4573.6,0.00154133]
[1759751685965,1.87923211,4573.7,4573.6,0.00154133]
[1759751703972,1.87923211,4573.7,4573.6,0.51754133]
[1759751704377,1.87923211,4573.7,4573.6,0.20614133]
[1759751704773,1.87934576,4573.7,4573.6,0.20614133]
[1759751708075,1.26695576,4573.7,4573.6,0.20614133]
[1759751708284,1.44954576,4573.7,4573.6,1.11834133]
[1759751708476,1.66854576,4573.7,4573.6,1.11834133]
[1759751708778,1.27515576,4573.7,4573.6,1.11834133]
[1759751710682,0.71815576,4573.7,4573.6,1.11834133]
[1759751710880,0.22118528,4573.7,4573.6,1.11834133]
[1759751711582,0.00218528,4573.7,4573.6,1.11834133]
[1759751712786,0.39557528,4573.7,4573.6,1.11834133]
[1759751713486,0.70697528,4573.7,4573.6,1.11834133]
[1759751715083,1.41874592,4573.7,4573.6,0.72494133]
[1759751715587,0.92827528,4573.7,4573.6,0.72494133]
[1759751717391,0.53488528,4573.7,4573.6,1.11834133]
[1759751717690,0.00218528,4573.7,4573.6,1.11834133]
[1759751717889,0.39557528,4573.7,4573.6,1.11834133]
[1759751718987,0.00218528,4573.7,4573.6,1.11834133]
[1759751719790,0.39557528,4573.7,4573.6,1.11834133]
[1759751721591,0.00218528,4573.7,4573.6,1.11834133]
[1759751721787,0.39557528,4573.7,4573.6,1.11834133]
[1759751722690,0.72417528,4573.7,4573.6,1.11834133]
[1759751723288,1.15907528,4573.7,4573.6,0.72494133]
[1759751723487,1.15907528,4573.7,4573.6,0.00154133]
[1759751725896,1.15907528,4573.7,4573.6,0.00054133]
[1759751735101,1.15907528,4573.7,4573.6,0.60314133]
[1759751735298,1.15907528,4573.7,4573.6,0.91614133]
[1759751735493,1.15907528,4573.7,4573.6,0.52274133]
[1759751736004,1.15907528,4573.7,4573.6,0.91614133]
[1759751737705,1.15907528,4573.7,4573.6,1.14024133]
[1759751737902,0.91053,4574.4,4574.3,0.2222]
[1759751738102,1.82911691,4574.4,4574.3,0.5352]
[1759751738405,1.12265,4574.1,4574.0,0.61556]
[1759751738603,1.82913691,4574.1,4574.0,0.5352]
[1759751738801,1.83193392,4574.1,4574.0,1.15266]
[1759751739196,1.61293392,4574.1,4574.0,1.15266]
[1759751739402,1.83193392,4574.1,4574.0,0.7593]
[1759751739601,1.61293392,4574.1,4574.0,0.7593]
[1759751739803,0.49028392,4574.1,4574.0,0.8938]
[1759751740098,0.00279701,4574.1,4574.0,6.1128]
[1759751740300,0.00279701,4574.1,4574.0,46.9128]
[1759751740500,0.39332,4574.5,4574.4,0.2222]
[1759751740708,0.91052,4574.5,4574.4,0.7593]
[1759751741606,0.9130281,4574.5,4574.4,0.7593]
[1759751742101,1.1251281,4574.5,4574.4,0.7593]
[1759751742908,1.1251281,4574.5,4574.4,1.15263]
[1759751744709,0.7318081,4574.5,4574.4,1.15263]
[1759751746510,1.1251281,4574.5,4574.4,1.15263]
[1759751748109,1.1251281,4574.5,4574.4,0.7593]
[1759751748304,1.2564281,4574.5,4574.4,0.7593]
[1759751748708,1.2564281,4574.5,4574.4,1.15263]
[1759751749306,0.81293,4574.4,4574.3,3.2078]
[1759751749613,1.11963,4574.4,4574.3,3.2078]
[1759751750310,1.11963,4574.4,4574.3,3.60114]
[1759751750613,1.11963,4574.4,4574.3,4.14694]
[1759751752209,0.7263,4574.4,4574.3,4.37104]
[1759751752715,0.7263,4574.4,4574.3,1.16324]
[1759751754816,1.11963,4574.4,4574.3,1.16324]
[1759751757223,1.11963,4574.4,4574.3,0.7699]
[1759751758421,1.11963,4574.4,4574.3,1.16324]
[1759751759617,1.11963,4574.4,4574.3,0.7699]
[1759751761718,1.11963,4574.4,4574.3,0.4305]
[1759751762119,1.11963,4574.4,4574.3,0.82384]
[1759751762424,0.7263,4574.4,4574.3,1.16324]
[1759751763017,0.5107,4574.4,4574.3,4.37104]
[1759751763721,0.0025081,4574.5,4574.4,0.39333]
[1759751763918,0.0025081,4574.5,4574.4,1.16323]
[1759751767223,0.0025081,4574.5,4574.4,0.7699]
[1759751767422,0.7288081,4574.5,4574.4,0.7699]
[1759751767627,1.1221281,4574.5,4574.4,1.16323]
[1759751770626,0.7288081,4574.5,4574.4,1.16323]
[1759751775333,0.5132081,4574.5,4574.4,1.16323]
[1759751776134,0.0025081,4574.5,4574.4,1.16323]
[1759751776328,0.0025081,4574.5,4574.4,1.38223]
[1759751776723,0.90397,4575.0,4574.9,1.16317]
[1759751776934,1.39002236,4575.0,4574.9,1.16317]
[1759751777633,1.39236911,4575.0,4574.9,1.16317]
[1759751778634,1.74066911,4575.0,4574.9,0.7699]
[1759751779132,1.74066911,4575.0,4574.9,1.16318]
[1759751782634,1.74066911,4575.0,4574.9,0.7699]
[1759751782830,1.74066911,4575.0,4574.9,1.16318]
[1759751785931,1.74066911,4575.0,4574.9,0.7699]
[1759751786329,1.74066911,4575.0,4574.9,1.16318]
[1759751790232,1.95966911,4575.0,4574.9,0.7699]
[1759751791339,1.60086911,4575.0,4574.9,1.16318]
[1759751791639,1.73356911,4575.0,4574.9,0.7699]
[1759751793645,1.11249,4574.8,4574.7,0.3933]
[1759751793845,1.59854236,4574.8,4574.7,0.6133]
[1759751794044,0.90603,4574.4,4574.3,0.91934]
[1759751794247,1.11253,4574.4,4574.3,0.91934]
[1759751794640,1.11253,4574.4,4574.3,1.14564]
[1759751794839,1.11253,4574.4,4574.3,0.7523]
[1759751795738,0.1327,4574.5,4574.0,41.1204]
[1759751796046,0.1327,4574.5,4574.4,0.2041]
[1759751796349,0.5526,4574.5,4574.4,0.5245]
[1759751796853,0.8621,4574.5,4574.4,0.5245]
[1759751797249,1.12272,4574.5,4574.4,0.7397]
[1759751799147,1.25752,4574.5,4574.4,0.7397]
[1759751803156,1.25752,4574.5,4574.4,1.13303]
[1759751803351,1.12272,4574.5,4574.4,1.13303]
[1759751804155,1.12272,4574.5,4574.4,0.7397]
[1759751809055,0.94253,4574.4,4574.3,3.2078]
[1759751809256,1.15323,4574.4,4574.3,3.2078]
[1759751809452,1.15323,4574.4,4574.3,3.9637]
[1759751809658,1.15323,4574.4,4574.3,4.35703]
[1759751811151,0.3391,4574.4,4574.3,4.35703]
[1759751811457,0.94251,4574.6,4574.5,1.14921]
[1759751811861,1.15321,4574.6,4574.5,1.14921]
[1759751812660,0.5492,4574.6,4574.5,1.27771]
[1759751813160,1.28821675,4575.0,4574.9,0.7559]
[1759751813460,1.99265783,4575.0,4574.9,0.7559]
[1759751814457,0.3933,4574.7,4574.6,0.3294]
[1759751814655,0.93772,4574.5,4574.4,0.94013]
[1759751814854,1.15322,4574.5,4574.4,1.14923]
[1759751815057,1.15322,4574.5,4574.4,0.7559]
[1759751816363,1.15322,4574.5,4574.4,1.14923]
[1759751820569,1.15322,4574.5,4574.4,0.7559]
[1759751820868,1.15322,4574.5,4574.4,1.14923]
[1759751821265,0.39332,4574.5,4574.4,1.14923]
[1759751821469,0.94252,4574.5,4574.4,1.14923]
[1759751821669,1.15322,4574.5,4574.4,1.14923]
[1759751822873,0.94252,4574.5,4574.4,1.14923]
[1759751823370,1.15322,4574.5,4574.4,1.14923]
[1759751824168,1.15322,4574.5,4574.4,0.7559]
[1759751824373,1.15323,4574.4,4574.3,3.2078]
[1759751824779,1.15323,4574.4,4574.3,3.4252]
[1759751825973,1.15323,4574.4,4574.3,3.7546]
[1759751826482,0.73245,4574.1,4574.0,41.1294]
[1759751826678,0.7599,4574.1,4574.0,0.3294]
[1759751827182,1.15325,4574.1,4574.0,0.5468]
[1759751828977,1.15325,4574.1,4574.0,0.94016]
[1759751829579,0.7599,4574.1,4574.0,1.14926]
[1759751830677,1.15325,4574.1,4574.0,1.14926]
[1759751831181,1.15325,4574.1,4574.0,0.7559]
[1759751833186,0.7599,4574.1,4574.0,1.14926]
[1759751833484,0.7682,4574.3,4574.2,1.14924]
[1759751833671,0.48539177,4574.3,4574.2,1.14924]
[1759751833876,0.5492,4574.6,4574.5,0.93182]
[1759751834073,1.03456921,4574.6,4574.5,1.14922]
[1759751834274,1.42787921,4574.6,4574.5,41.94922]
[1759751834477,0.48536921,4574.6,4574.5,42.07772]
[1759751834681,0.13504675,4575.0,4574.9,1.14918]
[1759751834682,0.73471675,4575.0,4574.9,1.14918]
[1759751834981,1.03688547,4575.0,4574.9,1.14918]
[1759751835188,1.03688547,4575.0,4574.9,0.7559]
[1759751835483,1.64085547,4575.0,4574.9,0.7559]
[1759751835682,1.64085547,4575.0,4574.9,1.14918]
[1759751836083,1.24758547,4575.0,4574.9,1.14918]
[1759751836688,1.03688547,4575.0,4574.9,1.14918]
[1759751839588,1.43015547,4575.0,4574.9,0.7559]
[1759751839786,1.24758547,4575.0,4574.9,0.7559]
[1759751839993,0.76224675,4575.0,4574.9,0.7559]
[1759751841192,0.76224675,4575.0,4574.9,1.14918]
[1759751842790,0.00234675,4575.0,4574.9,1.14918]
[1759751842991,0.33464675,4575.0,4574.9,1.14918]
[1759751843192,0.54784675,4575.0,4574.9,1.14918]
[1759751843793,0.94111675,4575.0,4574.9,0.7559]
[1759751844495,0.54784675,4575.0,4574.9,1.14918]
[1759751844895,0.94111675,4575.0,4574.9,1.14918]
[1759751845189,0.54784675,4575.0,4574.9,1.14918]
[1759751848792,0.54784675,4575.0,4574.9,0.7559]
[1759751848997,0.90614675,4575.0,4574.9,0.7559]
[1759751849498,0.60648,4574.9,4574.8,3.2078]
[1759751849698,1.16341,4574.7,4574.6,0.7507]
[1759751850995,1.16341,4574.7,4574.6,0.5317]
[1759751855403,0.39331,4574.6,4574.5,40.8]
[1759751855600,0.72241,4574.6,4574.5,40.8]
[1759751856703,0.72241,4574.6,4574.5,41.1332]
[1759751857705,0.72241,4574.6,4574.5,41.52652]
[1759751859408,0.72241,4574.6,4574.5,41.1332]
[1759751859801,0.3291,4574.6,4574.5,41.52652]
[1759751863002,0.3291,4574.6,4574.5,41.65722]
[1759751863209,0.76494675,4575.0,4574.9,1.16898]
[1759751863405,1.24908899,4575.0,4574.9,1.16898]
[1759751865801,1.64235899,4575.0,4574.9,1.16898]
[1759751867404,1.24908899,4575.0,4574.9,1.16898]
[1759751867604,0.00234675,4575.0,4574.9,1.16898]
[1759751869312,0.00234675,4575.0,4574.9,1.38798]
[1759751870003,0.4865415,4575.0,4574.9,1.38798]
[1759751870215,0.8119415,4575.0,4574.9,1.38798]
[1759751870609,1.0175415,4575.0,4574.9,1.38798]
[1759751871618,1.4108115,4575.0,4574.9,1.38798]
[1759751872616,1.0175415,4575.0,4574.9,1.38798]
[1759751873013,0.6921415,4575.0,4574.9,1.38798]
[1759751873221,1.0854115,4575.0,4574.9,1.38798]
[1759751873818,1.4108115,4575.0,4574.9,1.38798]
[1759751878517,1.0175415,4575.0,4574.9,1.38798]
[1759751879918,1.13521675,4575.0,4574.9,0.7757]
[1759751880116,1.26151675,4575.0,4574.9,0.7757]
[1759751881212,0.74194675,4575.0,4574.9,1.16898]
[1759751883422,0.39561675,4575.0,4574.9,1.16898]
[1759751884122,0.92661675,4575.0,4574.9,1.16898]
[1759751884323,0.53334675,4575.0,4574.9,1.16898]
[1759751884621,0.92661675,4575.0,4574.9,1.16898]
[1759751885920,0.92661675,4575.0,4574.9,0.7757]
[1759751886719,0.92661675,4575.0,4574.7,3.4268]
[1759751886720,0.3254,4574.8,4574.7,3.5407]
[1759751886921,0.7396,4574.8,4574.7,3.9602]
[1759751888727,0.7396,4574.8,4574.7,4.1792]
[1759751890219,0.531,4574.8,4574.7,4.1792]
[1759751891728,0.7396,4574.8,4574.7,3.9602]
[1759751891923,0.39331,4574.6,4574.5,40.8]
[1759751892120,0.71871,4574.6,4574.5,41.019]
[1759751892424,0.71871,4574.6,4574.5,41.3519]
[1759751895231,0.71871,4574.6,4574.5,41.74522]
[1759751896129,0.71871,4574.6,4574.5,41.3519]
[1759751896429,0.71871,4574.6,4574.5,41.74522]
[1759751896725,0.71871,4574.6,4574.5,41.52622]
[1759751896931,0.71871,4574.6,4574.5,41.2628]
[1759751897232,0.9243,4574.8,4574.7,1.1457]
[1759751901234,0.9243,4574.8,4574.7,0.7524]
[1759751902334,1.1355,4574.8,4574.7,0.7524]
[1759751907524,0.7422,4574.8,4574.7,0.7524]
[1759751907727,0.7422,4574.8,4574.7,4.3535]
[1759751909039,1.13549,4574.8,4574.7,4.3535]
[1759751911841,1.13549,4574.8,4574.7,3.9602]
[1759751912544,1.13549,4574.8,4574.7,4.3535]
[1759751913039,1.13549,4574.8,4574.7,3.9602]
[1759751914941,1.13549,4574.8,4574.7,0.7524]
[1759751917240,1.13549,4574.8,4574.7,1.1457]
[1759751917441,0.7422,4574.8,4574.7,1.1457]
[1759751917745,1.13549,4574.8,4574.7,1.1457]
[1759751918541,1.13549,4574.8,4574.7,0.7524]
[1759751919043,1.13549,4574.8,4574.7,1.1457]
[1759751919845,1.61936592,4574.8,4574.7,1.1457]
[1759751922146,1.61936592,4574.8,4574.7,0.7524]
[1759751923048,1.61936592,4574.8,4574.7,1.1457]
[1759751925249,1.61936592,4574.8,4574.7,0.2113]
[1759751927349,0.39331,4574.6,4574.5,40.8]
[1759751927648,0.70481,4574.6,4574.5,40.8]
[1759751927853,1.18871918,4574.6,4574.5,40.8]
[1759751928152,1.18871918,4574.6,4574.5,41.19332]
[1759751929658,1.18871918,4574.6,4574.5,40.8]
[1759751929956,1.18871918,4574.6,4573.5,0.1345]
[1759751929957,1.16228,4573.8,4573.7,0.5161]
[1759751930252,1.16228,4573.8,4573.7,41.3161]
[1759751930956,0.334,4573.7,4573.6,0.00054133]
[1759751931160,0.39338,4573.8,4573.6,0.00054133]
[1759751931349,0.219,4573.7,4573.6,0.00054133]
[1759751939458,0.219,4573.7,4573.6,0.30634133]
[1759751939658,0.219,4573.7,4573.6,0.51664133]
[1759751939958,0.9879,4573.7,4573.6,0.72534133]
[1759751940553,0.7689,4573.7,4573.6,0.72534133]
[1759751940765,0.219,4573.7,4573.6,0.72534133]
[1759751941255,0.4445,4573.7,4573.6,0.72534133]
[1759751941455,0.7785,4573.7,4573.6,0.72534133]
[1759751941862,0.39338,4573.8,4573.7,0.3058]
[1759751942066,0.219,4573.9,4573.8,0.7248]
[1759751942362,0.61237,4573.9,4573.8,0.7248]
[1759751943960,1.38127,4573.9,4573.8,0.7248]
[1759751944164,1.38127,4573.9,4573.8,0.2103]
[1759751944874,1.38127,4573.9,4573.8,0.5161]
[1759751946064,1.38127,4573.9,4573.8,0.7248]
[1759751951270,1.38127,4573.9,4573.8,1.11818]
[1759751952167,1.38127,4573.9,4573.8,0.7248]
[1759751957169,0.39337,4574.0,4573.9,0.39337]
[1759751957376,0.219,4574.0,4573.9,1.11817]
[1759751958374,0.61236,4574.0,4573.9,1.11817]
[1759751958571,0.219,4574.0,4573.9,1.11817]
[1759751960370,0.334,4574.2,4574.1,0.82335]
[1759751960677,0.71884,4574.3,4574.2,1.14424]
[1759751960868,1.42187053,4574.3,4574.2,1.14424]
[1759751961777,1.64277053,4574.3,4574.2,1.14424]
[1759751962268,1.15874,4574.3,4574.2,1.14424]
[1759751962473,0.93974,4574.3,4574.2,1.14424]
[1759751962770,1.15874,4574.3,4574.2,1.14424]
[1759751964080,1.36874,4574.3,4574.2,0.7509]
[1759751964576,1.14974,4574.3,4574.2,0.7509]
[1759751964776,1.36874,4574.3,4574.2,0.7509]
[1759751965072,0.39333,4574.4,4574.3,0.59922]
[1759751965274,0.93973,4574.4,4574.3,1.14422]
[1759751965475,1.15873,4574.4,4574.3,1.14422]
[1759751966370,1.15873,4574.4,4574.3,0.7509]
[1759751966569,0.93973,4574.4,4574.3,1.14423]
[1759751966780,1.15873,4574.4,4574.3,1.14423]
[1759751968482,0.7654,4574.4,4574.3,1.14423]
[1759751969783,1.15872,4574.4,4574.3,1.14423]
[1759751972583,1.15872,4574.4,4574.3,0.7509]
[1759751972880,1.36872,4574.4,4574.3,0.7509]
[1759751983691,1.36872,4574.4,4574.3,1.14423]
[1759751984193,1.36872,4574.4,4574.3,0.7509]
[1759751984796,1.36872,4574.4,4574.3,1.14423]
[1759751985397,0.7564,4574.4,4574.3,1.14423]
[1759751985996,1.14972,4574.4,4574.3,1.14423]
[1759751986691,0.7564,4574.4,4574.3,1.14423]
[1759751986894,0.6683,4574.8,4574.7,0.90429]
[1759751987094,1.4695664,4574.8,4574.7,1.12799]
[1759751987296,1.8628564,4574.8,4574.7,1.12799]
[1759751988190,1.8628564,4574.8,4574.7,0.7347]
[1759751990195,1.8628564,4574.8,4574.3,0.39332]
[1759751990196,0.39331,4574.5,4574.4,0.543]
[1759751990390,1.12761,4574.5,4574.4,1.14342]
[1759751990796,1.12761,4574.5,4574.4,41.94342]
[1759751993993,1.26161,4574.5,4574.4,41.5501]
[1759751995295,1.26161,4574.5,4574.4,41.0201]
[1759751995498,1.26161,4574.5,4574.1,1.14345]
[1759751995499,1.12764,4574.2,4574.1,1.14345]
[1759751995999,1.12764,4574.2,4574.1,41.94345]
[1759751996793,1.12764,4574.2,4574.1,41.0201]
[1759751997099,1.26166,4574.0,4573.9,3.2078]
[1759751997294,0.81378,4573.8,4573.7,0.543]
[1759751997494,1.12768,4573.8,4573.7,41.343]
[1759751997798,1.12768,4573.8,4573.7,41.73638]
[1759751998888,0.7343,4573.8,4573.7,41.73638]
[1759752000292,0.5255,4573.8,4573.7,41.73638]
[1759752000594,0.39335,4574.1,4574.0,0.94526]
[1759752000788,0.91884,4574.3,4574.2,0.2201]
[1759752000995,1.13784,4574.3,4574.2,0.7501]
[1759752001604,1.13784,4574.3,4574.2,1.14344]
[1759752001804,1.13784,4574.3,4574.2,0.7501]
[1759752002399,0.5255,4574.3,4574.2,0.7501]
[1759752002598,1.12758,4574.9,4574.8,0.7501]
[1759752002799,0.91881,4574.5,4574.4,0.7501]
[1759752003000,1.13781,4574.5,4574.4,0.7501]
[1759752004307,1.34661,4574.5,4574.4,0.7501]
[1759752005605,1.82943325,4574.5,4574.4,0.7501]
[1759752006209,0.82391,4574.5,4574.4,0.7501]
[1759752006601,1.13781,4574.5,4574.4,0.7501]
[1759752006806,1.13781,4574.5,4574.4,1.14342]
[1759752007006,3.34324675,4575.0,4574.9,0.4272]
[1759752007007,0.60721675,4575.0,4574.9,0.4272]
[1759752007206,1.30901155,4575.0,4574.9,1.14338]
[1759752007607,1.22964155,4575.0,4574.9,1.14338]
[1759752007804,0.52784675,4575.0,4574.9,1.14338]
[1759752008004,0.00234675,4575.0,4574.9,1.14338]
[1759752008506,0.00234675,4575.0,4574.9,4.35118]
[1759752008710,0.00234675,4575.0,4574.9,45.32790549]
[1759752008906,0.3139,4575.8,4575.7,0.39321]
[1759752009111,3.7333,4576.0,4575.9,0.7501]
[1759752009310,4.21558883,4576.0,4575.9,0.7501]
[1759752010211,4.21724827,4576.0,4575.9,0.7501]
[1759752010511,1.00944827,4576.0,4575.9,0.7501]
[1759752010811,0.52715944,4576.0,4575.9,0.7501]
[1759752011209,0.00165944,4576.0,4575.9,0.7501]
[1759752011613,0.52715944,4576.0,4575.9,0.7501]
[1759752011911,0.52715944,4576.0,4575.9,0.69354142]
[1759752012110,0.52715944,4576.0,4575.9,0.59222555]
[1759752012708,0.52715944,4576.0,4575.9,3.80002555]
[1759752013101,0.00165944,4576.0,4575.9,3.80002555]
[1759752014013,0.00165944,4576.0,4575.9,44.60002555]
[1759752015811,0.00165944,4576.0,4575.9,44.81902555]
[1759752017420,0.44955944,4576.0,4575.9,44.60002555]
[1759752017619,0.84274944,4576.0,4575.9,44.27712555]
[1759752017918,0.84274944,4576.0,4575.9,44.07002555]
[1759752018319,0.84274944,4576.0,4575.9,44.38232555]
[1759752019014,0.84274944,4576.0,4575.9,44.07002555]
[1759752020322,0.8704,4575.5,4575.4,4.32203]
[1759752020526,0.7461,4575.5,4575.4,4.32203]
[1759752020824,0.3257,4575.5,4575.4,45.12203]
[1759752022821,0.00165944,4576.0,4575.9,1.11419]
[1759752023020,0.00165944,4576.0,4575.9,4.32199]
[1759752023325,0.54125944,4576.0,4575.9,4.32199]
[1759752023525,0.93444944,4576.0,4575.9,3.9288]
[1759752023726,1.26524944,4576.0,4575.9,3.9288]
[1759752023926,0.54125944,4576.0,4575.9,4.32199]
[1759752025223,0.00165944,4576.0,4575.9,4.32199]
[1759752025727,0.93444944,4576.0,4575.9,3.9288]
[1759752026026,0.93444944,4576.0,4575.9,4.32199]
[1759752026229,1.26524944,4576.0,4575.9,4.32199]
[1759752026727,0.87205944,4576.0,4575.9,4.32199]
[1759752026924,1.26524944,4576.0,4575.9,4.00969]
[1759752027125,1.26524944,4576.0,4575.9,3.2078]
[1759752027430,0.8704,4575.5,4575.4,3.4119]
[1759752027630,0.8704,4575.5,4575.4,4.32204]
[1759752027927,0.5396,4575.5,4575.4,4.32204]
[1759752030430,0.8704,4575.5,4575.4,3.9288]
[1759752030627,0.39325,4575.2,4575.1,40.8]
[1759752030828,0.8704,4574.5,4574.4,3.2078]
[1759752031224,0.8704,4574.5,4574.4,3.4119]
[1759752032033,0.8704,4574.5,4574.4,3.2078]
[1759752032328,0.4204,4574.2,4574.1,0.5164]
[1759752032534,0.7461,4574.2,4574.1,0.721]
[1759752033226,0.5396,4574.2,4574.1,0.721]
[1759752034732,0.7461,4574.2,4574.1,0.721]
[1759752036232,0.7461,4574.2,4574.1,0.4087]
[1759752036632,0.39335,4574.1,4574.0,40.8]
[1759752036831,0.39338,4573.8,4573.5,0.2076]
[1759752037034,3.60118,4573.8,4573.2,0.2076]
[1759752037329,3.60118,4573.8,4573.3,40.8]
[1759752038034,3.60118,4573.8,4573.3,0.39341]
[1759752038225,0.3172,4573.7,4573.2,0.60102]
[1759752038429,3.60118,4573.8,4573.2,40.8]
[1759752038934,3.60118,4573.8,4573.1,0.39343]
[1759752038935,0.219,4573.7,4573.1,0.39343]
[1759752039136,0.219,4573.7,4573.2,0.60102]
[1759752039635,0.219,4573.7,4573.2,0.2076]
[1759752040031,0.219,4573.7,4573.2,0.60102]
[1759752041230,0.219,4573.7,4573.4,0.60101]
[1759752042135,0.219,4573.7,4573.4,0.2076]
[1759752044935,0.61238,4573.7,4573.4,0.2076]
[1759752045125,0.219,4573.7,4573.6,0.33164133]
[1759752045331,0.39338,4573.8,4573.7,1.14128]
[1759752045530,0.61238,4573.8,4573.7,1.14128]
[1759752045734,0.92958,4573.8,4573.7,1.14128]
[1759752045933,1.15148,4573.8,4573.7,1.14128]
[1759752046131,0.93248,4573.8,4573.7,0.7479]
[1759752046326,0.9694,4573.8,4573.6,0.00054133]
[1759752046532,0.39338,4573.7,4573.6,0.00054133]
[1759752047339,0.61238,4573.7,4573.6,0.00054133]
[1759752049034,3.82018,4573.7,4573.6,0.00054133]
[1759752058247,4.30086765,4573.7,4573.6,0.00054133]
[1759752058646,0.209,4572.8,4572.4,0.3328]
[1759752058946,0.94789,4572.5,4572.4,0.2261]
[1759752059141,1.50069,4572.5,4572.4,0.2261]
[1759752059743,1.50328316,4572.5,4572.4,0.62124127]
[1759752060248,0.33639316,4572.5,4572.4,1.16714127]
[1759752060548,0.22159316,4572.5,4572.4,1.16714127]
[1759752061147,0.00259316,4572.5,4572.4,1.16714127]
[1759752061351,0.61508316,4572.5,4572.4,1.16714127]
[1759752061745,0.22159316,4572.5,4572.4,1.16714127]
[1759752065757,0.00259316,4572.5,4572.4,1.16714127]
[1759752066949,0.33639316,4572.5,4572.4,1.16714127]
[1759752067558,0.00259316,4572.5,4572.4,1.16714127]
[1759752071447,0.89079316,4572.5,4572.4,1.16714127]
[1759752072052,1.28428316,4572.5,4572.4,0.44084127]
[1759752074461,1.28428316,4572.5,4572.4,0.83434127]
[1759752076261,0.89079316,4572.5,4572.4,1.16714127]
[1759752076459,0.00259316,4572.5,4572.4,1.16714127]
[1759752079259,0.00259316,4572.5,4572.4,6.38614127]
[1759752080362,0.39344,4573.1,4573.0,0.81294]
[1759752080663,0.70804,4573.1,4573.0,1.12594]
[1759752081260,0.91724,4573.1,4573.0,1.12594]
[1759752081467,0.91910276,4573.1,4573.0,1.12594]
[1759752081668,1.12920276,4573.1,4573.0,0.7325]
[1759752082059,1.12920276,4573.1,4573.0,0.4195]
[1759752084168,0.73576276,4573.1,4573.0,1.12594]
[1759752084671,1.12920276,4573.1,4573.0,1.12594]
[1759752084871,1.12920276,4573.1,4573.0,0.7325]
[1759752085072,1.12920276,4573.1,4573.0,1.12594]
[1759752085275,1.12920276,4573.1,4573.0,0.39344]
[1759752085569,1.24954,4573.0,4572.9,3.6273]
[1759752086072,1.24954,4573.0,4572.9,3.9403]
[1759752086576,1.24954,4573.0,4572.9,4.33375]
[1759752086777,0.8561,4573.0,4572.9,4.33375]
[1759752086978,0.7339,4573.0,4572.9,4.33375]
[1759752087272,1.12734,4573.0,4572.9,4.33375]
[1759752087473,0.91724,4573.0,4572.9,4.33375]
[1759752088873,1.12734,4573.0,4572.9,3.9403]
[1759752089075,1.24954,4573.0,4572.9,3.9403]
[1759752089276,1.24954,4573.0,4572.9,4.33375]
[1759752089480,1.12734,4573.0,4572.9,4.33375]
[1759752090274,0.5238,4573.0,4572.9,4.33375]
[1759752090472,0.00186276,4573.1,4573.0,1.25074]
[1759752091578,0.00186276,4573.1,4573.0,42.05074]
[1759752091967,0.4421,4574.0,4573.0,46.6573]
[1759752092171,0.70795,4574.2,4574.1,0.4195]
[1759752092470,3.2078,4574.7,4574.1,0.4195]
[1759752092674,0.70786,4575.2,4575.1,0.7325]
[1759752092876,1.12716,4575.2,4575.1,0.7325]
[1759752093071,1.12919428,4575.2,4575.1,0.7325]
[1759752093271,0.73593428,4575.2,4575.1,0.7325]
[1759752093471,0.00203428,4575.2,4575.1,0.7325]
[1759752093981,0.00203428,4575.2,4575.1,3.9403]
[1759752094176,0.00203428,4575.2,4575.1,4.1593]
[1759752094377,0.3146,4575.9,4575.1,9.1593]
[1759752094580,0.3238,4576.3,4576.2,0.4315]
[1759752094780,0.3238,4576.3,4576.2,0.7419]
[1759752095283,0.3238,4576.3,4576.2,41.5419]
[1759752095487,0.32536271,4576.3,4576.2,41.54466122]
[1759752096372,0.00156271,4576.3,4576.2,41.54466122]
[1759752096574,0.32536271,4576.3,4576.2,41.93783122]
[1759752096775,0.32536271,4576.3,4576.2,41.54466122]
[1759752098778,0.00156271,4576.3,4576.2,41.93783122]
[1759752100987,0.00156271,4576.3,4576.2,42.15683122]
[1759752103692,0.32536271,4576.3,4576.2,40.80276122]
[1759752104188,0.75386271,4576.3,4576.2,0.00276122]
[1759752106088,5.75386271,4576.3,4576.2,0.00276122]
[1759752107880,8.64466386,4576.3,4576.2,0.00057594]
[1759752112886,9.03782386,4576.3,4576.2,0.00057594]
[1759752114191,9.25682386,4576.3,4576.2,0.00057594]
[1759752117894,4.25682386,4576.3,4576.2,0.76937594]
[1759752118691,4.25682386,4576.3,4576.2,0.44347594]